bitfinex-derivatives/quotes_BNBF0:USTF0_20250221
["timestamp","ask_amount","ask_price","bid_price","bid_amount"]
[1740109175207,3.49406779,653.45,652.07,2.22044449]
[1740109175411,3.49406779,653.45,652.08,2.22044449]
[1740109175711,3.49406779,653.45,652.09,2.22044449]
[1740109175910,3.49406779,653.45,652.1,2.22044449]
[1740109176105,3.49406779,653.45,652.11,2.22044449]
[1740109176309,3.49406779,653.45,652.12,2.22044449]
[1740109176511,3.49406779,653.45,652.02,1.14560293]
[1740109176711,3.49406779,653.45,652.03,2.21927419]
[1740109176913,3.49406779,653.45,652.04,5.24309741]
[1740109177107,3.49406779,653.45,652.04,3.02382322]
[1740109177715,3.49406779,653.45,652.05,2.21846693]
[1740109178014,3.49406779,653.45,652.06,2.21846693]
[1740109178209,3.49406779,653.45,652.06,3.02382322]
[1740109179609,3.49406779,653.45,652.07,5.24188419]
[1740109179812,3.49406779,653.45,652.08,2.21806097]
[1740109180013,3.49406779,653.45,652.15,1.14560293]
[1740109180713,3.49406779,653.45,652.16,3.02382322]
[1740109182116,3.49406779,653.45,652.17,3.02382322]
[1740109182817,3.49406779,653.45,652.19,1.14560293]
[1740109183618,3.49406779,653.45,652.2,2.21772259]
[1740109183814,3.49406779,653.45,652.21,2.21772259]
[1740109184017,3.49406779,653.45,652.22,2.21772259]
[1740109184220,3.49406779,653.45,652.23,2.21772259]
[1740109184518,3.49406779,653.45,652.24,5.24154581]
[1740109184719,3.49406779,653.45,652.25,2.21772259]
[1740109184915,3.49406779,653.45,652.26,2.21772259]
[1740109185120,3.49406779,653.45,652.27,2.21772259]
[1740109185320,3.49406779,653.45,652.28,2.21772259]
[1740109185519,3.49406779,653.45,652.29,2.21772259]
[1740109185717,3.49406779,653.45,652.3,2.21772259]
[1740109185918,3.49406779,653.45,652.31,2.21772259]
[1740109186121,3.49406779,653.45,652.32,2.21772259]
[1740109186420,3.49406779,653.45,652.33,2.21772259]
[1740109186721,3.49406779,653.45,652.34,2.21772259]
[1740109186922,3.49406779,653.45,652.35,2.21772259]
[1740109187217,3.49406779,653.45,652.36,2.21772259]
[1740109187421,3.49406779,653.45,652.37,2.21772259]
[1740109187622,3.49406779,653.45,652.38,2.21772259]
[1740109187921,3.49406779,653.45,652.39,2.21772259]
[1740109188123,3.49406779,653.45,652.4,5.24154581]
[1740109188316,3.49406779,653.45,652.41,2.21772259]
[1740109188515,3.49406779,653.45,652.42,2.21772259]
[1740109188720,3.49406779,653.45,652.43,2.21772259]
[1740109188917,3.49406779,653.45,652.4,3.02382322]
[1740109189222,3.49406779,653.45,652.44,3.02382322]
[1740109190721,3.49406779,653.45,652.45,3.02382322]
[1740109191620,3.49406779,653.45,652.46,3.02382322]
[1740109192922,3.49406779,653.45,652.18,1.14560293]
[1740109193123,3.49406779,653.45,652.19,2.2172886]
[1740109193319,3.49406779,653.45,652.2,2.2172886]
[1740109193518,3.49406779,653.45,652.21,5.23862451]
[1740109193722,3.49406779,653.45,652.22,2.2172886]
[1740109193921,3.49406779,653.45,652.21,3.02133591]
[1740109193922,3.49406779,653.45,652.23,2.2172886]
[1740109194121,3.49406779,653.45,652.24,2.2172886]
[1740109194320,3.49406779,653.45,652.25,2.2172886]
[1740109194520,3.49406779,653.45,652.26,2.2172886]
[1740109194724,3.49406779,653.45,652.21,3.02133591]
[1740109194725,3.49406779,653.45,652.27,2.2172886]
[1740109194925,3.49406779,653.45,652.28,2.2172886]
[1740109195226,3.49406779,653.45,652.32,1.14560293]
[1740109195426,3.49406779,653.45,652.33,2.2172886]
[1740109195620,3.49406779,653.45,652.34,2.2172886]
[1740109195824,3.49406779,653.45,652.35,2.2172886]
[1740109196123,3.49406779,653.45,652.36,2.2172886]
[1740109196325,3.49406779,653.45,652.37,2.2172886]
[1740109196526,3.49406779,653.45,652.38,2.2172886]
[1740109196726,3.49406779,653.45,652.39,2.2172886]
[1740109196919,3.49406779,653.45,652.4,2.2172886]
[1740109197121,3.49406779,653.45,652.41,2.2172886]
[1740109197322,3.49406779,653.45,652.42,2.2172886]
[1740109197523,3.49406779,653.45,652.43,2.2172886]
[1740109197723,3.49406779,653.45,652.41,3.02133591]
[1740109197927,3.49406779,653.45,652.42,2.21779582]
[1740109198129,3.49406779,653.45,652.43,2.21779582]
[1740109198329,3.49406779,653.45,652.41,3.02133591]
[1740109198624,3.49406779,653.45,652.42,2.21789226]
[1740109198829,3.49406779,653.45,652.41,3.02133591]
[1740109199131,3.49406779,653.45,652.33,1.14560293]
[1740109199331,3.49406779,653.45,652.34,2.21759474]
[1740109199530,3.49406779,653.45,652.35,2.21759474]
[1740109199727,3.49406779,653.45,652.34,3.02188954]
[1740109199931,3.49406779,653.45,652.35,2.21762818]
[1740109200135,3.49406779,653.45,652.36,2.21762818]
[1740109200326,3.49406779,653.45,652.35,1.14560293]
[1740109200530,3.49406779,653.45,652.36,5.23950298]
[1740109200726,3.49406779,653.45,652.36,3.02188954]
[1740109201833,3.49406779,653.45,652.35,1.14560293]
[1740109202934,3.49406779,653.45,652.36,3.02251459]
[1740109204136,3.49406779,653.45,652.22,1.14560293]
[1740109204337,3.49406779,653.45,652.23,2.21839398]
[1740109204536,3.49406779,653.45,652.24,2.21839398]
[1740109204737,3.49406779,653.45,652.25,2.21839398]
[1740109204937,3.49406779,653.45,652.26,2.21839398]
[1740109205238,3.49406779,653.45,652.27,2.21839398]
[1740109205435,3.49406779,653.45,652.28,2.21839398]
[1740109205636,3.49406779,653.45,652.29,2.21839398]
[1740109205933,3.49406779,653.45,652.3,2.21839398]
[1740109206137,3.49406779,653.45,652.31,2.21839398]
[1740109206337,3.49406779,653.45,652.32,2.21839398]
[1740109206537,3.49406779,653.45,652.33,2.21839398]
[1740109206737,3.49406779,653.45,652.23,1.14560293]
[1740109206738,3.49406779,653.45,652.34,2.21839398]
[1740109207037,3.49406779,653.45,652.35,2.21839398]
[1740109207237,3.49406779,653.45,652.32,3.02290224]
[1740109207238,3.49406779,653.45,652.36,2.21839398]
[1740109207439,3.49406779,653.45,652.37,2.21839398]
[1740109207739,3.49406779,653.45,652.38,2.21839398]
[1740109208040,3.49406779,653.45,652.39,2.21839398]
[1740109208238,3.49406779,653.45,652.4,2.21839398]
[1740109208539,3.49406779,653.45,652.41,2.21839398]
[1740109208734,3.49406779,653.45,652.42,2.21839398]
[1740109208938,3.49406779,653.45,652.39,3.02290224]
[1740109209440,3.49406779,653.45,652.24,1.14560293]
[1740109210043,3.49406779,653.45,652.25,3.02475694]
[1740109210836,3.49406779,653.45,652.39,1.14560293]
[1740109213241,3.49406779,653.45,652.25,1.14560293]
[1740109214238,3.49406779,653.45,652.26,3.02455579]
[1740109216344,3.49406779,653.45,652.27,3.02455579]
[1740109218444,3.49406779,653.45,652.22,1.14560293]
[1740109218645,3.49406779,653.45,652.23,2.2197265]
[1740109218845,3.49406779,653.45,652.24,2.2197265]
[1740109219144,3.49406779,653.45,652.2,1.14560293]
[1740109219145,3.49406779,653.45,652.25,5.24419649]
[1740109219340,3.49406779,653.45,652.26,2.2197265]
[1740109219546,3.49406779,653.45,652.27,2.2197265]
[1740109219844,3.49406779,653.45,652.28,2.2197265]
[1740109220144,3.49406779,653.45,652.29,2.2197265]
[1740109220345,3.49406779,653.45,652.3,2.2197265]
[1740109220544,3.49406779,653.45,652.31,2.2197265]
[1740109220741,3.49406779,653.45,652.32,2.2197265]
[1740109220942,3.49406779,653.45,652.3,3.02446999]
[1740109221846,3.49406779,653.45,652.23,1.14560293]
[1740109222341,3.49406779,653.45,652.24,3.02463052]
[1740109223347,3.49406779,653.45,652.23,1.14560293]
[1740109223947,3.49406779,653.45,652.24,3.02497352]
[1740109225449,3.49406779,653.45,652.23,1.14560293]
[1740109226346,4.87093481,653.45,652.1,1.14560293]
[1740109229044,4.87093481,653.45,652.11,3.02579017]
[1740109229648,3.49406779,653.45,652.11,3.02579017]
[1740109230347,3.49406779,653.45,652.12,3.02579017]
[1740109231750,3.49406779,653.45,651.95,1.14560293]
[1740109231947,3.49406779,653.45,651.96,2.22065855]
[1740109232150,3.49406779,653.45,651.97,5.24613714]
[1740109232353,3.49406779,653.45,651.98,2.22065855]
[1740109232654,3.49406779,653.45,651.99,2.22065855]
[1740109232852,3.49406779,653.45,651.97,3.02547859]
[1740109233054,3.49406779,653.45,651.98,2.22000956]
[1740109233248,3.49406779,653.45,651.97,3.02547859]
[1740109233445,3.49406779,653.45,651.99,3.02547859]
[1740109234745,3.49406779,653.45,652.0,3.02547859]
[1740109236258,3.49406779,653.45,651.94,1.14560293]
[1740109239858,3.49406779,653.45,651.81,1.14560293]
[1740109244657,3.49406779,653.45,651.79,1.14560293]
[1740109247964,3.49406779,653.45,651.74,1.14560293]
[1740109248166,3.49406779,653.45,651.75,2.21566289]
[1740109248358,3.49406779,653.45,651.76,2.21566289]
[1740109248559,3.49406779,653.45,651.77,2.21566289]
[1740109248760,3.49406779,653.45,651.78,2.21566289]
[1740109249065,3.49406779,653.45,651.79,2.21566289]
[1740109249261,3.49406779,653.45,651.8,2.21566289]
[1740109249466,3.49406779,653.45,651.81,2.21566289]
[1740109249665,3.49406779,653.45,651.82,2.21566289]
[1740109249865,3.49406779,653.45,651.83,2.21566289]
[1740109250065,3.49406779,653.45,651.84,2.21566289]
[1740109250265,3.49406779,653.45,651.85,2.21566289]
[1740109250465,3.49406779,653.45,651.82,3.01870393]
[1740109250666,3.49406779,653.45,651.83,2.21557828]
[1740109250864,3.49406779,653.45,651.84,2.21557828]
[1740109251060,3.49406779,653.45,651.85,2.21557828]
[1740109251266,3.49406779,653.45,651.86,2.21557828]
[1740109251563,3.49406779,653.45,651.86,3.01870393]
[1740109252860,3.49406779,653.45,651.81,1.14560293]
[1740109253264,3.49406779,653.45,651.82,2.21561959]
[1740109253462,3.49406779,653.45,651.84,1.14560293]
[1740109253664,3.49406779,653.45,651.85,2.21561959]
[1740109253863,3.49406779,653.45,651.86,2.21561959]
[1740109254062,3.49406779,653.45,651.87,2.21561959]
[1740109254269,3.49406779,653.45,651.88,2.21561959]
[1740109254470,3.49406779,653.45,651.89,2.21561959]
[1740109254670,3.49406779,653.45,651.9,2.21561959]
[1740109254865,3.49406779,653.45,651.91,5.2343835]
[1740109255071,3.49406779,653.45,651.91,3.01876391]
[1740109256474,3.49406779,653.45,651.64,1.14560293]
[1740109258972,3.49406779,653.45,651.82,1.14560293]
[1740109259669,3.49406779,653.45,651.83,2.21607481]
[1740109259873,3.49406779,653.45,651.84,2.21607481]
[1740109260073,3.49406779,653.45,651.85,5.23472045]
[1740109260273,3.49406779,653.45,651.86,2.21607481]
[1740109260473,3.49406779,653.45,651.87,2.21607481]
[1740109260668,3.49406779,653.45,651.88,2.21607481]
[1740109260874,3.49406779,653.45,651.89,2.21607481]
[1740109261176,3.49406779,653.45,651.9,2.21607481]
[1740109261374,3.49406779,653.45,651.91,2.21607481]
[1740109261570,3.49406779,653.45,651.92,2.21607481]
[1740109261772,3.49406779,653.45,651.85,3.01864564]
[1740109261967,3.49406779,653.45,652.1,1.14560293]
[1740109265175,3.49406779,653.45,651.51,1.37472352]
[1740109265176,3.49406779,653.45,651.9,1.14560293]
[1740109265377,3.49406779,653.45,651.91,2.21585326]
[1740109265577,3.49406779,653.45,651.92,2.21585326]
[1740109265777,3.49406779,653.45,651.9,1.14560293]
[1740109266073,3.49406779,653.45,651.92,3.01920814]
[1740109267379,3.49406779,653.45,651.93,3.01920814]
[1740109268480,3.49406779,653.45,651.94,2.21588663]
[1740109268676,3.49406779,653.45,651.95,2.21588663]
[1740109268879,3.49406779,653.45,651.96,2.21588663]
[1740109269079,3.49406779,653.45,651.97,2.21588663]
[1740109269281,3.49406779,653.45,651.98,2.21588663]
[1740109269581,3.49406779,653.45,651.99,2.21588663]
[1740109269781,3.49406779,653.45,652.0,2.21588663]
[1740109269974,3.49406779,653.45,652.01,2.21588663]
[1740109270178,3.49406779,653.45,652.02,2.21588663]
[1740109270376,3.49406779,653.45,652.03,2.21588663]
[1740109270579,3.49406779,653.45,652.04,2.21543166]
[1740109270776,3.49406779,653.45,652.05,2.21543166]
[1740109270974,3.49406779,653.45,652.06,2.21543166]
[1740109271176,3.49406779,653.45,652.1,1.14560293]
[1740109271381,3.49406779,653.45,652.11,2.21543166]
[1740109271680,3.49406779,653.45,652.12,2.21543166]
[1740109271880,3.49406779,653.45,652.13,2.21543166]
[1740109272075,3.49406779,653.45,652.14,2.21543166]
[1740109272278,3.49406779,653.45,652.15,2.21543166]
[1740109272480,3.49406779,653.45,652.15,3.01920814]
[1740109273580,3.49406779,653.45,652.1,1.14560293]
[1740109273880,3.49406779,653.45,652.09,1.14560293]
[1740109274881,3.49406779,653.45,652.1,3.01744395]
[1740109276082,3.49406779,653.45,652.1,4.16304688]
[1740109276283,3.49406779,653.45,652.1,1.14560293]
[1740109278879,3.49406779,653.45,651.96,1.14560293]
[1740109279182,3.49406779,653.45,651.97,2.21383418]
[1740109279382,3.49406779,653.45,651.98,2.21383418]
[1740109279684,3.49406779,653.45,651.99,5.23019552]
[1740109279984,3.49406779,653.45,652.0,2.21362508]
[1740109280184,3.49406779,653.45,652.01,2.21362508]
[1740109280378,3.49406779,653.45,652.02,2.21362508]
[1740109280578,3.49406779,653.45,652.03,5.22998642]
[1740109280778,3.49406779,653.45,652.04,2.21362508]
[1740109280980,3.49406779,653.45,652.05,2.21362508]
[1740109281182,3.49406779,653.45,652.03,3.01636134]
[1740109281183,3.49406779,653.45,652.06,3.35922801]
[1740109281377,3.49406779,653.45,652.07,2.21362508]
[1740109281581,3.49406779,653.45,652.08,2.21362508]
[1740109281781,3.49406779,653.45,652.09,2.21362508]
[1740109281977,3.49406779,653.45,652.1,2.21362508]
[1740109282177,3.49406779,653.45,652.11,2.21362508]
[1740109282381,3.49406779,653.45,652.12,2.21362508]
[1740109282584,3.49406779,653.45,652.13,2.21362508]
[1740109282783,3.49406779,653.45,652.14,2.21362508]
[1740109282982,3.49406779,653.45,652.15,2.21362508]
[1740109283282,3.49406779,653.45,652.16,2.21362508]
[1740109283485,3.49406779,653.45,652.17,2.21362508]
[1740109283685,3.49406779,653.45,652.1,3.01636134]
[1740109283686,3.49406779,653.45,652.18,2.21362508]
[1740109283884,3.49406779,653.45,652.19,5.22998642]
[1740109284086,3.49406779,653.45,652.2,2.21362508]
[1740109284381,3.49406779,653.45,652.21,2.21362508]
[1740109284579,3.49406779,653.45,652.22,2.21362508]
[1740109284782,3.49406779,653.45,652.23,2.21362508]
[1740109284979,3.49406779,653.45,652.24,2.21362508]
[1740109285183,3.49406779,653.45,652.25,2.21362508]
[1740109285485,3.49406779,653.45,652.26,2.21362508]
[1740109285678,3.49406779,653.45,652.27,2.21362508]
[1740109285883,3.49406779,653.45,652.28,2.21362508]
[1740109286083,3.49406779,653.45,652.29,2.21362508]
[1740109286280,3.49406779,653.45,652.3,2.21362508]
[1740109286481,3.49406779,653.45,652.31,5.22998642]
[1740109286681,3.49406779,653.45,652.32,2.21362508]
[1740109286886,3.49406779,653.45,652.33,2.21362508]
[1740109287082,3.49406779,653.45,652.34,2.21362508]
[1740109287386,3.49406779,653.45,652.31,3.01636134]
[1740109287589,3.49406779,653.45,652.32,2.21264008]
[1740109287783,3.49406779,653.45,652.31,3.01636134]
[1740109287784,3.49406779,653.45,652.33,2.21264008]
[1740109287982,3.49406779,653.45,652.34,2.21264008]
[1740109288180,3.49406779,653.45,652.35,3.01636134]
[1740109289583,3.49406779,653.45,652.24,1.14560293]
[1740109289790,3.49406779,653.45,652.3,1.14560293]
[1740109292087,3.49406779,653.45,652.38,1.14560293]
[1740109292793,3.188,653.45,652.38,1.14560293]
[1740109294394,3.188,653.45,652.29,1.14560293]
[1740109297495,3.188,653.45,652.13,1.14560293]
[1740109300092,3.188,653.45,652.14,1.14560293]
[1740109301197,3.188,653.45,652.15,3.01927957]
[1740109302894,3.188,653.45,652.16,3.01927957]
[1740109304199,3.188,653.45,652.17,5.2362155]
[1740109304399,3.188,653.45,652.18,2.21693593]
[1740109304699,3.188,653.45,652.19,2.21693593]
[1740109304902,3.188,653.45,652.2,2.21693593]
[1740109305102,3.188,653.45,652.21,2.21693593]
[1740109305297,3.188,653.45,652.22,2.21693593]
[1740109305495,3.188,653.45,652.23,2.21693593]
[1740109305699,3.188,653.45,652.24,2.21693593]
[1740109305899,3.188,653.45,652.25,2.21693593]
[1740109306098,3.188,653.45,652.26,2.21693593]
[1740109306303,3.188,653.45,652.23,3.01927957]
[1740109306497,3.188,653.45,652.24,2.21736806]
[1740109306703,3.188,653.45,652.25,2.21736806]
[1740109306901,3.188,653.45,652.23,3.01927957]
[1740109307102,3.188,653.45,652.24,2.21741562]
[1740109307403,3.188,653.45,652.25,2.21741562]
[1740109307702,3.188,653.45,652.26,2.21741562]
[1740109307903,3.188,653.45,652.27,2.21741562]
[1740109308103,3.188,653.45,652.28,2.21786835]
[1740109308303,3.188,653.45,652.24,3.01927957]
[1740109308503,3.188,653.45,652.25,2.21788538]
[1740109308698,3.188,653.45,652.26,2.21788538]
[1740109308903,3.188,653.45,652.27,2.21788538]
[1740109309105,3.188,653.45,652.28,2.21788538]
[1740109309306,3.188,653.45,652.29,2.21788538]
[1740109309503,3.188,653.45,652.25,3.01927957]
[1740109309700,3.188,653.45,652.26,2.21817106]
[1740109309899,3.188,653.45,652.27,2.21817106]
[1740109310105,3.188,653.45,652.28,2.21817106]
[1740109310300,3.188,653.45,652.29,2.21817106]
[1740109310505,3.188,653.45,652.27,3.01927957]
[1740109310701,3.188,653.45,652.28,2.21851507]
[1740109310906,3.188,653.45,652.29,2.21851507]
[1740109311104,3.188,653.45,652.3,5.23808814]
[1740109311305,3.188,653.45,652.3,3.01927957]
[1740109312307,3.188,653.45,652.14,1.14560293]
[1740109312507,3.188,653.45,652.15,2.2191552]
[1740109312700,3.188,653.45,652.14,1.14560293]
[1740109312900,3.188,653.45,652.16,3.02363271]
[1740109314009,3.188,653.45,652.17,3.02363271]
[1740109314910,1.37686702,653.41,652.17,3.02363271]
[1740109315610,1.37686702,653.41,652.18,3.02363271]
[1740109317114,1.37686702,653.41,652.19,3.02363271]
[1740109318015,1.37686702,653.4,652.19,3.02363271]
[1740109318310,1.37686702,653.4,652.2,2.21954177]
[1740109318511,1.37686702,653.4,652.21,2.21954177]
[1740109318714,1.60121471,653.39,652.22,2.21954177]
[1740109319014,1.60121471,653.39,652.23,2.21954177]
[1740109319214,1.60121471,653.39,652.24,5.24359341]
[1740109319409,1.60121471,653.39,652.25,2.21954177]
[1740109319613,1.60121471,653.39,652.26,2.21954177]
[1740109319814,1.60121471,653.39,652.27,2.21954177]
[1740109320115,1.60121471,653.39,652.24,3.02405164]
[1740109320415,1.60121471,653.39,651.98,1.14560293]
[1740109321015,2.97808173,653.39,652.0,1.14560293]
[1740109321516,2.1,653.38,652.0,1.14560293]
[1740109324221,2.1,653.38,651.86,1.14560293]
[1740109325021,2.1,653.38,651.87,1.60111035]
[1740109325321,0.30610526,653.37,651.87,1.60111035]
[1740109329127,0.30610526,653.37,651.89,1.14560293]
[1740109329725,0.30610526,653.37,651.9,2.21693968]
[1740109329928,0.30610526,653.37,651.91,2.21693968]
[1740109330127,0.30610526,653.37,651.92,2.21693968]
[1740109330325,0.30610526,653.37,651.93,2.21693968]
[1740109330527,0.30610526,653.37,651.94,2.21693968]
[1740109330826,0.30610526,653.37,651.95,2.21693968]
[1740109331026,0.30610526,653.37,651.96,2.21693968]
[1740109331226,0.30610526,653.37,651.97,2.21693968]
[1740109331426,0.30610526,653.37,651.98,2.21693968]
[1740109331627,0.30610526,653.37,651.99,2.21693968]
[1740109331827,0.30610526,653.37,652.0,2.21693968]
[1740109332026,0.30610526,653.37,652.01,2.21693968]
[1740109332230,0.30610526,653.37,652.02,2.21693968]
[1740109332429,0.30610526,653.37,652.13,1.14560293]
[1740109332629,0.30610526,653.37,652.14,2.21693968]
[1740109332826,0.30610526,653.37,652.15,2.21693968]
[1740109333130,0.30610526,653.37,652.16,2.21693968]
[1740109333326,0.30610526,653.37,652.17,2.21693968]
[1740109333528,0.30610526,653.37,652.18,5.23784191]
[1740109333729,0.30610526,653.37,652.19,2.21693968]
[1740109334028,0.30610526,653.37,652.2,2.21693968]
[1740109334224,0.30610526,653.37,652.21,2.21693968]
[1740109334428,0.30610526,653.37,652.31,1.14560293]
[1740109334629,0.30610526,653.37,652.32,2.21693968]
[1740109334830,0.30610526,653.37,652.33,2.21693968]
[1740109335029,0.30610526,653.37,652.34,2.21693968]
[1740109335227,0.30610526,653.37,652.32,3.02090223]
[1740109335228,0.30610526,653.37,652.35,2.21693968]
[1740109335532,0.30610526,653.37,652.36,2.21693968]
[1740109335728,0.30610526,653.37,652.37,2.21693968]
[1740109335932,0.30610526,653.37,652.38,2.21693968]
[1740109336133,0.30610526,653.37,652.37,3.02090223]
[1740109337430,0.30610526,653.37,652.26,1.14560293]
[1740109337634,0.30610526,653.37,652.27,2.21380835]
[1740109337833,0.30610526,653.37,652.27,3.01680998]
[1740109338134,0.30610526,653.37,652.28,2.21331045]
[1740109338331,0.30610526,653.37,652.29,2.21331045]
[1740109338529,0.30610526,653.37,652.3,2.2132389]
[1740109338732,0.30610526,653.37,652.31,2.2132389]
[1740109338932,0.30610526,653.37,652.32,2.2132389]
[1740109339133,0.30610526,653.37,652.33,2.2132389]
[1740109339335,0.30610526,653.37,652.34,2.2132389]
[1740109339635,0.30610526,653.37,652.33,3.01680998]
[1740109340536,0.30610526,653.37,652.11,1.14560293]
[1740109340737,0.30610526,653.37,652.12,2.21074252]
[1740109340937,0.30610526,653.37,652.13,5.22356697]
[1740109341137,0.30610526,653.37,652.14,2.21074252]
[1740109341332,0.30610526,653.37,652.15,2.21074252]
[1740109341640,0.30610526,653.37,652.13,3.01282445]
[1740109342438,0.30610526,653.37,652.12,1.14560293]
[1740109345138,0.30610526,653.37,652.11,1.14560293]
[1740109347146,0.30610526,653.37,651.47,1.37472352]
[1740109347147,0.30610526,653.37,652.16,1.14560293]
[1740109348848,1.874,653.36,652.16,1.14560293]
[1740109349147,1.874,653.36,652.17,3.00649007]
[1740109349546,1.874,653.36,652.18,2.20595766]
[1740109349748,1.785,653.35,652.19,2.20595766]
[1740109349947,1.785,653.35,652.2,2.20595766]
[1740109350143,1.785,653.35,652.21,2.20595766]
[1740109350343,1.785,653.35,652.22,2.20595766]
[1740109350548,1.785,653.35,652.23,2.20595766]
[1740109350847,1.785,653.35,652.24,2.20595766]
[1740109351047,1.785,653.35,652.25,2.20595766]
[1740109351247,1.785,653.35,652.26,2.20595766]
[1740109351444,1.785,653.35,652.27,2.20595766]
[1740109351649,1.785,653.35,652.28,5.21244773]
[1740109351948,1.785,653.35,652.29,2.20595766]
[1740109352150,1.785,653.35,652.3,2.20595766]
[1740109352349,1.785,653.35,652.31,2.20595766]
[1740109352550,1.785,653.35,652.32,2.20595766]
[1740109352749,1.785,653.35,652.33,2.20595766]
[1740109352944,1.785,653.35,652.34,2.20595766]
[1740109353151,1.785,653.35,652.35,2.20595766]
[1740109353450,1.785,653.35,652.36,2.20595766]
[1740109353650,1.785,653.35,652.37,2.20595766]
[1740109353852,1.785,653.35,652.32,3.00649007]
[1740109354053,1.785,653.35,652.33,2.20437459]
[1740109354251,1.785,653.35,652.34,2.20437459]
[1740109354452,1.785,653.35,652.35,2.20437459]
[1740109354751,1.785,653.35,652.36,2.20437459]
[1740109354951,1.785,653.35,652.37,2.20437459]
[1740109355151,1.785,653.35,652.38,2.20437459]
[1740109355353,1.785,653.35,652.35,4.152093]
[1740109355652,1.785,653.35,652.36,2.20379282]
[1740109355850,1.785,653.35,652.37,2.20379282]
[1740109356051,1.785,653.35,652.38,5.21028915]
[1740109356252,1.785,653.35,652.39,2.20379908]
[1740109356454,1.785,653.35,652.4,2.20379908]
[1740109356752,1.785,653.35,652.41,5.21028915]
[1740109356952,1.785,653.35,652.42,2.20379908]
[1740109357152,1.785,653.35,652.43,2.20379908]
[1740109357355,1.785,653.35,652.44,2.20379908]
[1740109357651,1.785,653.35,652.45,5.21028915]
[1740109357853,1.785,653.35,652.46,2.20379908]
[1740109358153,1.785,653.35,652.45,4.152093]
[1740109358154,1.785,653.35,652.47,2.20379908]
[1740109358451,1.785,653.35,652.48,2.20379908]
[1740109358652,1.785,653.35,652.49,2.20379908]
[1740109358851,1.785,653.35,652.5,2.20379908]
[1740109359050,1.785,653.35,652.51,2.20379908]
[1740109359249,1.785,653.35,652.52,2.20379908]
[1740109359450,1.785,653.35,652.53,2.20379908]
[1740109359746,1.785,653.35,652.51,3.00649007]
[1740109359951,1.785,653.35,652.52,2.20348121]
[1740109360146,1.785,653.35,652.53,2.20348121]
[1740109360349,1.785,653.35,652.54,2.20348121]
[1740109360549,1.785,653.35,652.55,2.20348121]
[1740109360753,1.785,653.35,652.56,2.20348121]
[1740109361053,1.785,653.35,652.56,3.00649007]
[1740109362348,1.785,653.35,652.57,3.00649007]
[1740109364451,1.785,653.35,652.55,1.14560293]
[1740109364855,1.785,653.35,652.57,1.14560293]
[1740109368260,1.785,653.35,652.3,1.14560293]
[1740109368456,1.785,653.35,652.29,1.14560293]
[1740109371061,1.785,653.35,652.38,1.14560293]
[1740109373758,1.785,653.35,651.73,1.37472352]
[1740109373759,1.785,653.35,652.43,1.14560293]
[1740109376260,1.785,653.35,652.58,1.14560293]
[1740109376757,1.71410526,653.37,652.58,1.14560293]
[1740109381172,0.30610526,653.37,652.59,1.14560293]
[1740109384375,0.30610526,653.37,652.28,1.14560293]
[1740109384573,0.30610526,653.37,652.29,2.21491553]
[1740109384773,0.30610526,653.37,652.28,1.14560293]
[1740109384774,0.30610526,653.37,652.3,2.21491553]
[1740109384974,0.30610526,653.37,652.28,1.14560293]
[1740109384975,0.30610526,653.37,652.31,2.21491553]
[1740109385171,0.30610526,653.37,652.32,2.21491553]
[1740109385375,0.30610526,653.37,652.33,2.21491553]
[1740109385575,0.30610526,653.37,652.34,2.21491553]
[1740109385775,0.30610526,653.37,652.35,2.21491553]
[1740109386075,0.30610526,653.37,652.36,2.21491553]
[1740109386270,0.30610526,653.37,652.37,2.21491553]
[1740109386470,0.30610526,653.37,652.38,5.23333952]
[1740109386677,0.30610526,653.37,652.53,1.14560293]
[1740109386874,0.30610526,653.37,652.54,2.21491553]
[1740109387176,0.30610526,653.37,652.55,2.21491553]
[1740109387371,0.30610526,653.37,652.56,2.21491553]
[1740109387575,0.30610526,653.37,652.53,1.14560293]
[1740109389379,0.30610526,653.37,652.39,1.14560293]
[1740109389574,0.30610526,653.37,652.4,2.2173322]
[1740109389771,0.30610526,653.37,652.41,5.23891357]
[1740109390077,0.30610526,653.37,652.42,2.2173322]
[1740109390275,0.30610526,653.37,652.43,2.2173322]
[1740109390476,0.30610526,653.37,652.41,3.02158137]
[1740109390776,0.30610526,653.37,652.42,2.21784173]
[1740109390975,0.30610526,653.37,652.43,5.2394231]
[1740109391176,0.30610526,653.37,652.44,2.21784173]
[1740109391376,0.30610526,653.37,652.45,2.21784173]
[1740109391573,0.30610526,653.37,652.46,2.21784173]
[1740109391776,0.30610526,653.37,652.47,2.21784173]
[1740109391977,0.30610526,653.37,652.48,2.21784173]
[1740109392179,0.30610526,653.37,652.43,3.02158137]
[1740109392380,0.30610526,653.37,652.49,3.02158137]
[1740109393482,0.30610526,653.37,652.5,2.21950559]
[1740109393782,0.30610526,653.37,652.5,3.02158137]